[Event "56th Rubinstein Memorial D 2020"]
[Site "Polanica Zdroj"]
[Date "2020.08.17"]
[Round "3.9"]
[White "Wawrzyniak, Pawel"]
[Black "Goral, Jan"]
[Result "1-0"]
[ECO "A80"]
[WhiteElo "1824"]
[BlackElo "1580"]
[Annotator "NA RC"]
[PlyCount "109"]
[EventDate "2020.08.15"]
[EventType "swiss"]
[EventCountry "POL"]
[SourceTitle "playchess.com"]
[Source "ChessBase"]
[SourceQuality "1"]
[TimeControl "40/5400+30:1800+30"]

{[%evp 8,109,18,13,33,22,27,40,80,63,98,99,99,33,43,29,38,30,70,71,74,47,47,47,44,37,81,83,70,60,109,88,81,70,67,73,79,66,222,239,32767,269,318,215,183,188,204,194,198,227,268,277,314,277,268,284,281,315,267,32767,32767,32767,32767,32767,32767,32767,32767,403,594,597,671,691,753,774,925,1021,1055,1135,1290,32767,1311,1227,1330,1448,1303,1804,2068,1848,1945,2298,2250,2897,3012,2790,32767,32767,32767,32767,32767,12846,29984,29985,29986,29989]} 1. d4 {[%emt 0:00:00]} f5 {[%emt 0:00:00]} 2. Nf3 {[%emt 0:00:31]} Nf6 {[%emt 0:00:35]} 3. g3 {[%emt 0:00:12]} g6 {[%emt 0:00:23]} 4. Bg2 {[%emt 0:00:08]} Bg7 {[%emt 0:00:30]} 5. O-O {[%emt 0:00:13]} d6 {[%emt 0:00:33]} 6. b3 {[%emt 0:00:59]} O-O {[%emt 0:00:39]} 7. Bb2 {[%emt 0:00:07]} e5 {[%emt 0:06:50]} 8. dxe5 {[%emt 0:19:17]} Ng4 {[%emt 0:00:20]} 9. Qd5+ {[%emt 0:00:30] A81: Dutch Defence: 2 g3.} Kh8 {[%emt 0:00:33]} 10. Rd1 {[%emt 0:27:39]} Nc6 {[%emt 0:04:38]} 11. Na3 {[%emt 0:00:48]} Ngxe5 {[%emt 0:08:59]} 12. Nxe5 {[%emt 0:00:24] [#]} Bxe5 $146 {[%emt 0:04:23]} ({Predecessor:} 12... Nxe5 13. Nc4 Nc6 14. Bxg7+ Kxg7 15. Na5 Nxa5 16. Qxa5 c6 17. Qb4 Rf6 18. Rd2 Qb6 19. Qf4 d5 20. Rad1 Be6 21. h4 h6 22. Qe5 Raf8 23. e3 {½-½ (23) Kolthoff,S (2186)-Pflantz,M (2217) Buchholz in der Nordheide 2000}) 13. Bxe5+ {[%emt 0:01:01]} Nxe5 {[%emt 0:00:15]} 14. Nc4 {[%emt 0:06:26]} Qf6 {[%emt 0:01:23]} 15. Nxe5 {[%emt 0:03:36]} dxe5 {[%emt 0:00:37]} 16. Qc5 {[%emt 0:02:36]} c6 {[%emt 0:03:51]} 17. Rd6 {[%emt 0:03:50]} Be6 {[%emt 0:00:51]} 18. Rad1 {[%emt 0:03:50]} Rfe8 {[%emt 0:07:38]} 19. a4 {[%emt 0:10:10]} Qg7 {[%emt 0:06:53]} 20. a5 {[%emt 0:02:08]} a6 $1 {[%emt 0:01:24]} 21. e3 {[%emt 0:02:06]} e4 {[%emt 0:04:16]} 22. Bf1 {[%emt 0:00:32]} f4 {[%emt 0:06:33]} (22... Re7 $16 {keeps fighting.}) 23. exf4 {[%emt 0:01:02]} ({Much less strong is} 23. gxf4 $6 Bf5 $16) 23... Bg4 {[%emt 0:00:41]} 24. R1d2 {[%emt 0:05:41]} h6 {[%emt 0:05:23]} 25. Qd4 {[%emt 0:03:12]} Qxd4 {[%emt 0:02:06]} 26. R2xd4 {[%emt 0:00:07]} Bf5 {[%emt 0:01:24]} 27. Bc4 {[%emt 0:04:15]} Kg7 {[%emt 0:00:21]} 28. Kf1 {[%emt 0:01:12]} h5 {[%emt 0:01:26]} 29. Ke2 {[%emt 0:00:41]} Rac8 {[%emt 0:01:25]} 30. Ke3 {[%emt 0:00:29]} Rc7 {[%emt 0:03:50]} 31. Rd8 {[%emt 0:00:51]} Rce7 {[%emt 0:02:03]} 32. Rxe8 {[%emt 0:00:32]} Rxe8 {[%emt 0:00:07]} 33. Rd6 {[%emt 0:00:42]} Bh3 {[%emt 0:00:53]} 34. Kd4 {[%emt 0:00:23]} Bf5 {[%emt 0:00:24]} 35. Ke3 {[%emt 0:00:05]} Bh3 {[%emt 0:00:05]} 36. Kd4 {[%emt 0:00:01]} Bf5 {[%emt 0:00:01]} 37. Kc5 {[%emt 0:01:17]} Bc8 {[%emt 0:02:08]} 38. Kb6 {[%emt 0:00:20]} Rf8 {[%emt 0:02:54]} 39. Kc7 {[%emt 0:00:14]} Bg4 {[%emt 0:02:23]} 40. Kxb7 {[%emt 0:00:20]} Bf3 {[%emt 0:00:54]} 41. Kxa6 {[%emt 0:30:25]} Ra8+ {[%emt 0:30:12]} 42. Kb6 {[%emt 0:00:10]} c5 {[%emt 0:01:07]} 43. Bd5 {[%emt 0:00:32]} Rb8+ {[%emt 0:00:35]} 44. Kxc5 {[%emt 0:00:38]} Rc8+ {[%emt 0:00:20]} 45. Rc6 {[%emt 0:00:08]} Rd8 {[%emt 0:00:27]} 46. c4 {[%emt 0:00:18]} Rb8 {[%emt 0:00:56]} 47. b4 {[%emt 0:00:14]} Re8 {[%emt 0:00:44]} 48. Rc7+ {[%emt 0:00:15]} Kh6 {[%emt 0:00:11]} 49. a6 {[%emt 0:00:29]} e3 {[%emt 0:00:25]} 50. fxe3 {[%emt 0:00:06]} Bxd5 {[%emt 0:00:07]} 51. cxd5 {[%emt 0:00:06]} Ra8 {[%emt 0:00:06]} 52. a7 {[%emt 0:00:11]} h4 {[%emt 0:00:10]} 53. gxh4 {[%emt 0:00:21]} g5 {[%emt 0:00:10]} 54. hxg5+ {[%emt 0:00:35]} Kg6 {[%emt 0:00:10]} 55. Kb6 {[%emt 0:00:16]} 1-0

[Event "56th Rubinstein Memorial D 2020"]
[Site "Polanica Zdroj"]
[Date "2020.08.17"]
[Round "3.12"]
[White "Klisowski, Bartosz"]
[Black "Pyka, Roman"]
[Result "0-1"]
[ECO "A05"]
[WhiteElo "1509"]
[BlackElo "1873"]
[Annotator "NA RC"]
[PlyCount "120"]
[EventDate "2020.08.15"]
[EventType "swiss"]
[EventCountry "POL"]
[SourceTitle "playchess.com"]
[Source "ChessBase"]
[SourceQuality "1"]
[TimeControl "40/5400+30:1800+30"]

{[%evp 8,120,22,-4,-5,-96,51,50,53,27,35,39,54,53,55,34,50,39,59,52,59,66,84,66,60,40,33,12,48,7,54,27,0,25,0,0,16,18,32,26,25,-27,-17,-42,0,-20,0,-25,-22,32767,32767,-64,-56,-83,0,0,-8,0,0,-77,-89,-126,-84,-100,-136,-427,-502,-5322,-860,-873,-912,-12832,-944,-889,-886,-951,-932,-12841,-5099,-818,-5402,-12842,-5659,-7436,-4366,-29964,-29957,-29969,-29976,-4952,-29975,-29981,-29959,-29973,-29974,-12847,-29977,-29975,-29969,-29978,-29979,-29979,32767,32767,32767,32767,32767,32767,32767,32767,32767,32767,-29987,-29988,-29989]} 1. Nf3 {[%emt 0:00:00]} Nf6 {[%emt 0:00:00]} 2. g3 {[%emt 0:00:00]} c5 {[%emt 0:00:00]} 3. Bg2 {[%emt 0:00:35]} Nc6 {[%emt 0:00:00]} 4. c4 {[%emt 0:00:50]} d5 {[%emt 0:00:00]} 5. d4 {[%emt 0:01:17]} dxc4 {[%emt 0:00:33]} 6. Qa4 {[%emt 0:02:10] A30: Symmetrical English: Double Fianchetto and Hedgehog.} (6. Be3 $11 {remains equal.}) 6... Qa5+ {[%emt 0:10:48]} (6... cxd4 $17 7. Nxd4 Qxd4 8. Bxc6+ Bd7 9. Bxd7+ Qxd7 10. Qxd7+ Kxd7) 7. Qxa5 {[%emt 0:01:27]} Nxa5 {[%emt 0:00:07]} 8. dxc5 {[%emt 0:01:40]} e6 {[%emt 0:01:00]} 9. Bd2 {[%emt 0:01:38]} Nc6 {[%emt 0:00:19]} 10. Na3 {[%emt 0:03:01]} Bxc5 {[%emt 0:00:31]} 11. Nxc4 {[%emt 0:01:59]} O-O {[%emt 0:00:31]} 12. O-O {[%emt 0:02:59]} Ne4 {[%emt 0:01:15] [#]} 13. Be3 $146 {[%emt 0:04:57]} ({Predecessor:} 13. Bf4 h6 14. h4 f6 15. Be3 Bxe3 16. Nxe3 Nd6 17. Rfd1 Nb5 18. Rd2 e5 19. Rad1 {½-½ (33) Czarnecka,L (1282)-Chrobot,P Jastrzebia Gora 2014}) 13... Bxe3 {[%emt 0:01:21]} 14. Nxe3 {[%emt 0:01:04]} Rd8 {[%emt 0:00:28]} 15. Rfd1 {[%emt 0:02:32]} Bd7 {[%emt 0:01:59]} 16. Nc4 {[%emt 0:02:58]} (16. Nd4 $5 {[%cal Rg2e4]} f5 17. Nb5 $14) 16... Be8 {[%emt 0:02:28]} 17. Nfe5 {[%emt 0:08:44]} Nxe5 {[%emt 0:01:15]} 18. Nxe5 {[%emt 0:00:25]} Nf6 {[%emt 0:00:59]} 19. Rac1 {[%emt 0:05:00]} Rxd1+ {[%emt 0:00:18]} 20. Rxd1 {[%emt 0:00:07]} Rc8 {[%emt 0:01:43]} 21. Bxb7 {[%emt 0:11:39]} Rb8 {[%emt 0:00:16]} 22. Bc6 {[%emt 0:06:45]} Rxb2 {[%emt 0:00:53]} 23. Rd8 {[%emt 0:01:05]} Kf8 {[%emt 0:00:09]} 24. Ra8 {[%emt 0:01:10]} Rxa2 {[%emt 0:02:21]} 25. g4 {[%emt 0:08:26]} h6 {[%emt 0:03:20]} 26. h4 {[%emt 0:00:53]} Ke7 {[%emt 0:01:05]} 27. g5 {[%emt 0:01:51]} hxg5 {[%emt 0:00:09]} 28. hxg5 {[%emt 0:00:03]} Nd7 {[%emt 0:01:15]} 29. Bxd7 {[%emt 0:02:17]} Bxd7 {[%emt 0:00:18]} 30. Rg8 {[%emt 0:01:37]} g6 {[%emt 0:02:02]} ({Black should try} 30... Be8 $1 $15 31. Rxg7 Kf8) 31. Rg7 {[%emt 0:00:53]} Be8 {[%emt 0:01:06]} 32. Nxg6+ $1 {[%emt 0:00:52]} Kd6 {[%emt 0:00:06]} 33. Nf4 {[%emt 0:01:06]} (33. Nh8 $1 $11) 33... a5 {[%emt 0:01:15]} 34. Nh5 {[%emt 0:06:49]} a4 {[%emt 0:04:15]} 35. Nf6 {[%emt 0:00:10] [#]} Bc6 $1 {[%emt 0:00:02]} 36. e4 $2 {[%emt 0:06:23]} (36. Rxf7 $17 Rxe2 37. Ra7) 36... Ke7 {[%emt 0:03:09]} 37. e5 {[%emt 0:01:13]} (37. Rh7 $142 Rb2 38. Ng8+ Kd6 39. Rxf7) 37... a3 {[%emt 0:00:09]} (37... Ra1+ $142 38. Kh2 Rh1+ 39. Kg3 a3) 38. f3 {[%emt 0:08:13]} Bxf3 {[%emt 0:00:32]} 39. Rg8 {[%emt 0:01:21]} Bc6 {[%emt 0:00:15]} 40. Rc8 {[%emt 0:00:50]} Rc2 {[%emt 0:00:51]} 41. Rc7+ {[%emt 0:30:57]} Kd8 {[%emt 0:30:15]} 42. Rxf7 {[%emt 0:01:42]} a2 {[%emt 0:01:56]} 43. Ra7 {[%emt 0:00:19]} Rc1+ {[%emt 0:00:38]} 44. Kf2 {[%emt 0:00:52]} a1=Q {[%emt 0:00:09]} 45. Rxa1 {[%emt 0:00:09]} Rxa1 {[%emt 0:00:05]} 46. g6 {[%emt 0:00:15]} Ra2+ {[%emt 0:00:09]} 47. Kf1 {[%emt 0:00:15]} Rg2 {[%emt 0:00:08]} 48. Nh5 {[%emt 0:00:51]} Rxg6 {[%emt 0:00:21]} 49. Nf4 {[%emt 0:00:04]} Rh6 {[%emt 0:00:10]} 50. Kf2 {[%emt 0:00:10]} Ke7 {[%emt 0:00:07]} 51. Ke3 {[%emt 0:00:07]} Kf7 {[%emt 0:00:14]} 52. Kf2 {[%emt 0:00:12]} Rh4 {[%emt 0:00:21]} 53. Ke3 {[%emt 0:00:05] [#]} Rxf4 $1 {[%emt 0:00:10]} 54. Kxf4 {[%emt 0:00:05]} Kg6 {[%emt 0:00:04]} 55. Ke3 {[%emt 0:00:15]} Kf5 {[%emt 0:00:11]} 56. Kd4 {[%emt 0:00:04]} Bb7 {[%emt 0:00:17]} 57. Ke3 {[%emt 0:00:08]} Kxe5 {[%emt 0:00:11]} 58. Ke2 {[%emt 0:00:02]} Ke4 {[%emt 0:00:07]} 59. Kd2 {[%emt 0:00:05]} Ba6 {[%emt 0:00:10]} 60. Ke1 {[%emt 0:00:04]} Kf3 {[%emt 0:00:10]} 0-1

[Event "56th Rubinstein Memorial D 2020"]
[Site "Polanica Zdroj"]
[Date "2020.08.17"]
[Round "3.13"]
[White "Bukala, Weronika"]
[Black "Szydelko, Kazimierz"]
[Result "1-0"]
[ECO "A45"]
[WhiteElo "1504"]
[BlackElo "1713"]
[Annotator "NA"]
[PlyCount "89"]
[EventDate "2020.08.15"]
[EventType "swiss"]
[EventCountry "POL"]
[SourceTitle "playchess.com"]
[Source "ChessBase"]
[SourceQuality "1"]
[TimeControl "40/5400+30:1800+30"]

1. d4 {[%emt 0:00:00]} Nf6 {[%emt 0:00:00]} 2. Bg5 {[%emt 0:00:00]} e6 {[%emt 0:00:41]} 3. e4 {[%emt 0:00:00]} Be7 {[%emt 0:01:30]} 4. e5 {[%emt 0:00:03]} Nd5 {[%emt 0:00:43]} 5. Bxe7 {[%emt 0:00:31]} Qxe7 {[%emt 0:00:21]} 6. c4 {[%emt 0:00:59]} Nb6 {[%emt 0:01:17]} 7. Nc3 {[%emt 0:00:49]} d6 {[%emt 0:05:48]} 8. Qg4 {[%emt 0:04:39]} O-O {[%emt 0:03:19]} 9. Nf3 {[%emt 0:02:07]} f6 {[%emt 0:02:55]} 10. exf6 {[%emt 0:03:53]} Qxf6 {[%emt 0:00:48]} 11. Bd3 {[%emt 0:02:27]} e5 {[%emt 0:01:52]} 12. Qh5 {[%emt 0:02:53]} g6 {[%emt 0:00:34]} 13. dxe5 {[%emt 0:02:21]} dxe5 {[%emt 0:07:11]} 14. Qh6 {[%emt 0:03:09]} Bf5 {[%emt 0:08:16]} 15. Ng5 {[%emt 0:13:12]} Qe7 {[%emt 0:06:06]} 16. O-O-O {[%emt 0:01:46]} Nc6 {[%emt 0:28:07]} 17. c5 {[%emt 0:06:47]} Bxd3 {[%emt 0:00:30]} 18. Rxd3 {[%emt 0:00:30]} Rf5 19. h4 Nb4 {[%emt 0:05:10]} 20. Rdd1 {[%emt 0:08:10]} Nc4 {[%emt 0:03:05]} 21. a3 {[%emt 0:01:42]} Nc6 {[%emt 0:02:00]} 22. Nd5 {[%emt 0:04:27]} Qg7 {[%emt 0:00:09]} 23. Qxg7+ {[%emt 0:00:16]} Kxg7 {[%emt 0:00:00]} 24. Nxc7 {[%emt 0:01:12]} Nd4 {[%emt 0:02:29]} 25. Nce6+ {[%emt 0:09:14]} Nxe6 {[%emt 0:02:45]} 26. Rd7+ {[%emt 0:00:39]} Kg8 {[%emt 0:03:35]} 27. Nxe6 {[%emt 0:00:08]} Rf6 {[%emt 0:04:23]} 28. Ng5 {[%emt 0:01:51]} Rc6 {[%emt 0:00:51]} 29. Nxh7 {[%emt 0:03:45]} Rxc5 {[%emt 0:00:15]} 30. Nf6+ {[%emt 0:02:54]} Kf8 {[%emt 0:00:07]} 31. Ne4 {[%emt 0:00:34]} Rc6 {[%emt 0:01:26]} 32. Nc3 {[%emt 0:00:51]} b5 {[%emt 0:02:56]} 33. Kc2 {[%emt 0:03:19]} a5 {[%emt 0:00:59]} 34. Kb3 {[%emt 0:04:02]} Nb6 {[%emt 0:05:57]} 35. Rh7 {[%emt 0:01:48]} Kg8 {[%emt 0:00:07]} 36. Re7 {[%emt 0:00:21]} a4+ {[%emt 0:00:52]} 37. Ka2 {[%emt 0:00:51]} Nc4 {[%emt 0:00:04]} 38. Rd1 {[%emt 0:05:07]} Rac8 {[%emt 0:00:38]} 39. Rdd7 {[%emt 0:01:09]} Nxb2 {[%emt 0:00:27]} 40. Nd5 {[%emt 0:02:37]} Nd3 {[%emt 0:01:04]} 41. Rg7+ {[%emt 0:30:43]} Kh8 {[%emt 0:30:16]} 42. Rh7+ {[%emt 0:02:21]} Kg8 {[%emt 0:00:06]} 43. Rdg7+ {[%emt 0:00:55]} Kf8 {[%emt 0:00:09]} 44. Rf7+ {[%emt 0:00:13]} Ke8 {[%emt 0:00:47]} 45. Re7+ {[%emt 0:00:16]} 1-0

[Event "56th Rubinstein Memorial D 2020"]
[Site "Polanica Zdroj"]
[Date "2020.08.17"]
[Round "3.14"]
[White "Garwacki, Kornel"]
[Black "Jurkiewicz, Joanna"]
[Result "1/2-1/2"]
[ECO "B00"]
[WhiteElo "1492"]
[BlackElo "1691"]
[Annotator "NA RC"]
[PlyCount "85"]
[EventDate "2020.08.15"]
[EventType "swiss"]
[EventCountry "POL"]
[SourceTitle "playchess.com"]
[Source "ChessBase"]
[SourceQuality "1"]
[TimeControl "40/5400+30:1800+30"]

1. e4 {[%emt 0:00:00]} b6 {[%emt 0:00:00]} 2. d4 {[%emt 0:00:03]} Bb7 {[%emt 0:00:00]} 3. f3 {[%emt 0:00:21]} e6 {[%emt 0:00:00]} 4. c4 {[%emt 0:00:18]} d5 {[%emt 0:01:28]} 5. Nc3 {[%emt 0:00:24]} Nf6 {[%emt 0:03:17]} 6. Bg5 {[%emt 0:03:30]} Be7 {[%emt 0:01:54]} 7. e5 {[%emt 0:07:27]} Nfd7 {[%emt 0:00:21]} 8. Bxe7 {[%emt 0:00:14]} Qxe7 {[%emt 0:00:02]} 9. f4 {[%emt 0:03:53]} dxc4 {[%emt 0:05:35]} 10. Nf3 {[%emt 0:03:11]} Bd5 {[%emt 0:04:23]} 11. Qa4 {[%emt 0:01:43]} Bxf3 {[%emt 0:02:28]} 12. gxf3 {[%emt 0:00:26]} Qh4+ {[%emt 0:00:12]} 13. Ke2 {[%emt 0:00:44]} O-O {[%emt 0:11:33]} 14. Nb5 {[%emt 0:04:58]} Rc8 {[%emt 0:03:03]} 15. Qxc4 {[%emt 0:00:59]} Qxf4 {[%emt 0:00:27]} 16. Nd6 {[%emt 0:01:16]} Nxe5 {[%emt 0:08:27]} 17. Qc3 {[%emt 0:09:51]} Nxf3 {[%emt 0:02:59]} 18. Nxc8 {[%emt 0:01:38]} Nxd4+ {[%emt 0:01:25]} 19. Kd3 {[%emt 0:00:50]} Qf3+ {[%emt 0:02:54]} 20. Kxd4 {[%emt 0:01:35]} c5+ {[%emt 0:02:05]} 21. Kc4 {[%emt 0:09:28]} Qd5+ {[%emt 0:04:30]} 22. Kb5 {[%emt 0:00:03]} Qxh1 {[%emt 0:00:18]} 23. Ne7+ {[%emt 0:07:56]} Kf8 {[%emt 0:00:33]} 24. Rd1 {[%emt 0:02:19]} Kxe7 {[%emt 0:00:59]} 25. Qxg7 {[%emt 0:03:50]} Qc6+ {[%emt 0:01:32]} 26. Kc4 {[%emt 0:00:09]} Qa4+ {[%emt 0:00:54]} 27. b4 {[%emt 0:00:41]} Qxb4+ {[%emt 0:03:04]} 28. Kd3 {[%emt 0:00:11]} Qd4+ {[%emt 0:01:36]} 29. Qxd4 {[%emt 0:01:18]} cxd4 {[%emt 0:00:01]} 30. Bg2 {[%emt 0:00:01]} Nc6 {[%emt 0:00:31]} 31. Bxc6 {[%emt 0:00:43]} Rc8 {[%emt 0:00:39]} 32. Bb7 {[%emt 0:02:16]} Rc7 {[%emt 0:01:02]} 33. Ba6 {[%emt 0:01:02]} e5 {[%emt 0:00:41]} 34. Rd2 {[%emt 0:02:08]} f5 {[%emt 0:01:25]} 35. Rf2 {[%emt 0:01:22]} Rc3+ {[%emt 0:00:24]} 36. Kd2 {[%emt 0:00:28]} f4 {[%emt 0:02:17]} 37. Bd3 {[%emt 0:01:08]} h6 {[%emt 0:01:10]} 38. Rg2 {[%emt 0:00:51]} Ra3 {[%emt 0:04:08]} 39. Bc4 {[%emt 0:02:34]} Rc3 {[%emt 0:02:04]} 40. Bd3 {[%emt 0:01:03]} Ra3 {[%emt 0:00:04]} 41. Bc4 {[%emt 0:30:06]} Rh3 {[%emt 0:30:18]} 42. Bf1 {[%emt 0:02:14]} Ra3 {[%emt 0:03:03]} 43. Bc4 1/2-1/2

[Event "56th Rubinstein Memorial D 2020"]
[Site "Polanica Zdroj"]
[Date "2020.08.17"]
[Round "3.15"]
[White "Grzelak, Piotr"]
[Black "Ratajczak, Hubert"]
[Result "1/2-1/2"]
[ECO "B20"]
[WhiteElo "1664"]
[BlackElo "1513"]
[Annotator "NA RC"]
[PlyCount "81"]
[EventDate "2020.08.15"]
[EventType "swiss"]
[EventCountry "POL"]
[SourceTitle "playchess.com"]
[Source "ChessBase"]
[SourceQuality "1"]
[TimeControl "40/5400+30:1800+30"]

1. e4 {[%emt 0:05:03]} c5 {[%emt 0:00:00]} 2. c4 {[%emt 0:00:09]} d6 {[%emt 0:00:24]} 3. Ne2 {[%emt 0:00:29]} Nf6 {[%emt 0:02:43]} 4. Nbc3 {[%emt 0:00:12]} e6 {[%emt 0:05:09]} 5. d4 {[%emt 0:00:40]} cxd4 {[%emt 0:00:41]} 6. Nxd4 {[%emt 0:00:11]} a6 {[%emt 0:00:42]} 7. Be2 {[%emt 0:01:50]} Qc7 {[%emt 0:00:48]} 8. Be3 {[%emt 0:00:59]} b6 {[%emt 0:01:20]} 9. Qd2 {[%emt 0:01:22]} Bb7 {[%emt 0:01:07]} 10. f3 {[%emt 0:00:14]} Nbd7 {[%emt 0:01:30]} 11. Rc1 {[%emt 0:01:14]} Be7 {[%emt 0:00:47]} 12. g4 {[%emt 0:01:44]} h6 {[%emt 0:05:25]} 13. Kf2 {[%emt 0:02:40]} Ne5 {[%emt 0:03:46]} 14. Bd3 {[%emt 0:04:36]} Nfxg4+ {[%emt 0:10:54]} 15. fxg4 {[%emt 0:01:04]} Nxg4+ {[%emt 0:00:04]} 16. Ke2 {[%emt 0:03:26]} Nxe3 {[%emt 0:00:18]} 17. Qxe3 {[%emt 0:00:14]} Bg5 {[%emt 0:00:07]} 18. Qg3 {[%emt 0:00:40]} Bxc1 {[%emt 0:00:13]} 19. Rxc1 {[%emt 0:01:46]} g5 {[%emt 0:02:03]} 20. Kd2 {[%emt 0:02:38]} O-O-O {[%emt 0:01:06]} 21. b4 {[%emt 0:05:17]} Kb8 {[%emt 0:02:35]} 22. a4 {[%emt 0:01:33]} Rc8 {[%emt 0:00:56]} 23. Nb3 {[%emt 0:05:26]} Rhd8 {[%emt 0:01:19]} 24. a5 {[%emt 0:01:48]} d5 {[%emt 0:07:39]} 25. cxd5 {[%emt 0:05:36]} Qxg3 {[%emt 0:01:07]} 26. hxg3 {[%emt 0:00:56]} exd5 {[%emt 0:00:24]} 27. Nxd5 {[%emt 0:04:09]} Rxc1 {[%emt 0:02:31]} 28. Kxc1 {[%emt 0:00:53]} Bxd5 {[%emt 0:01:13]} 29. exd5 {[%emt 0:00:03]} bxa5 {[%emt 0:00:45]} 30. Nxa5 {[%emt 0:01:02]} Rxd5 {[%emt 0:00:06]} 31. Bxa6 {[%emt 0:00:22]} h5 {[%emt 0:01:25]} 32. Bc4 {[%emt 0:00:19]} Rf5 {[%emt 0:01:03]} 33. Kd2 {[%emt 0:02:07]} h4 {[%emt 0:01:27]} 34. gxh4 {[%emt 0:00:28]} gxh4 {[%emt 0:00:04]} 35. Nc6+ {[%emt 0:01:10]} Kc7 {[%emt 0:00:29]} 36. Nd4 {[%emt 0:00:30]} Rf6 {[%emt 0:01:07]} 37. Ke3 {[%emt 0:03:31]} h3 {[%emt 0:00:22]} 38. Nf3 {[%emt 0:02:57]} Kd6 {[%emt 0:01:34]} 39. Bf1 {[%emt 0:00:59]} Rh6 {[%emt 0:02:38]} 40. Nh2 f6 41. Ng4 1/2-1/2

[Event "56th Rubinstein Memorial D 2020"]
[Site "Polanica Zdroj"]
[Date "2020.08.17"]
[Round "3.16"]
[White "Perek, Oskar"]
[Black "Brzozowski, Pawel"]
[Result "0-1"]
[ECO "C00"]
[WhiteElo "1447"]
[BlackElo "1620"]
[Annotator "NA RC"]
[PlyCount "104"]
[EventDate "2020.08.15"]
[EventType "swiss"]
[EventCountry "POL"]
[SourceTitle "playchess.com"]
[Source "ChessBase"]
[SourceQuality "1"]
[TimeControl "40/5400+30:1800+30"]

1. e4 {[%emt 0:00:00]} e6 {[%emt 0:00:00]} 2. Nf3 {[%emt 0:00:03]} d5 {[%emt 0:00:00]} 3. exd5 {[%emt 0:00:10]} exd5 {[%emt 0:00:09]} 4. d4 {[%emt 0:00:22]} Nf6 {[%emt 0:01:02]} 5. Bf4 {[%emt 0:01:18]} Bd6 {[%emt 0:02:27]} 6. Bxd6 {[%emt 0:01:08]} Qxd6 {[%emt 0:00:23]} 7. Bd3 {[%emt 0:01:39]} O-O {[%emt 0:07:43]} 8. O-O {[%emt 0:00:24]} Bg4 {[%emt 0:01:06]} 9. Nbd2 {[%emt 0:01:36]} c5 {[%emt 0:09:22]} 10. dxc5 {[%emt 0:01:08]} Qxc5 {[%emt 0:00:09]} 11. c3 {[%emt 0:00:53]} Nc6 {[%emt 0:02:27]} 12. Qc2 {[%emt 0:01:28]} Rac8 {[%emt 0:01:58]} 13. Rac1 {[%emt 0:00:14]} Qd6 {[%emt 0:07:20]} 14. Qb1 {[%emt 0:02:25]} Rfe8 {[%emt 0:02:02]} 15. h3 {[%emt 0:01:32]} Bh5 {[%emt 0:00:28]} 16. g4 {[%emt 0:00:39]} Bg6 {[%emt 0:00:55]} 17. Bxg6 {[%emt 0:02:32]} hxg6 {[%emt 0:01:30]} 18. Rfe1 {[%emt 0:00:55]} Qf4 {[%emt 0:03:03]} 19. Rxe8+ {[%emt 0:01:54]} Rxe8 {[%emt 0:00:15]} 20. Re1 {[%emt 0:00:36]} Ne4 {[%emt 0:20:49]} 21. Qd3 {[%emt 0:03:16]} Re7 {[%emt 0:01:44]} 22. Re3 {[%emt 0:04:27]} Nc5 {[%emt 0:06:15]} 23. Qe2 {[%emt 0:03:01]} Rxe3 {[%emt 0:04:49]} 24. Qxe3 {[%emt 0:00:37]} Qxe3 {[%emt 0:00:06]} 25. fxe3 {[%emt 0:00:04]} Na4 {[%emt 0:01:19]} 26. c4 {[%emt 0:00:09]} Nxb2 {[%emt 0:07:10]} 27. cxd5 {[%emt 0:00:20]} Nb4 {[%emt 0:00:21]} 28. d6 {[%emt 0:00:55]} f6 {[%emt 0:02:35]} 29. Nd4 {[%emt 0:01:43]} Kf7 {[%emt 0:01:31]} 30. Ne4 {[%emt 0:01:37]} Nd1 {[%emt 0:01:44]} 31. Nc5 {[%emt 0:01:18]} b6 {[%emt 0:06:10]} 32. Nb7 {[%emt 0:00:06]} Ke8 {[%emt 0:00:29]} 33. a3 {[%emt 0:01:09]} Nd3 {[%emt 0:00:58]} 34. Ne6 {[%emt 0:03:05]} Ne5 {[%emt 0:02:54]} 35. Nxg7+ {[%emt 0:01:52]} Kf7 {[%emt 0:01:07]} 36. Nh5 {[%emt 0:01:04]} gxh5 {[%emt 0:00:05]} 37. gxh5 {[%emt 0:00:05]} Ke8 {[%emt 0:02:18]} 38. Kg2 {[%emt 0:00:39]} Nxe3+ {[%emt 0:00:42]} 39. Kg3 {[%emt 0:00:05]} Nf5+ {[%emt 0:01:48]} 40. Kf4 {[%emt 0:00:22]} Nh6 {[%emt 0:00:16]} 41. Ke4 {[%emt 0:30:35]} Kd7 {[%emt 0:30:16]} 42. Kd5 {[%emt 0:00:32]} Nf3 {[%emt 0:01:04]} 43. a4 {[%emt 0:00:17]} a5 {[%emt 0:00:19]} 44. Nd8 {[%emt 0:00:17]} Kxd8 {[%emt 0:00:24]} 45. Ke6 {[%emt 0:00:15]} f5 {[%emt 0:00:14]} 46. Kf6 {[%emt 0:00:21]} f4 {[%emt 0:00:36]} 47. Kg6 {[%emt 0:00:36]} Ne5+ {[%emt 0:00:31]} 48. Kxh6 {[%emt 0:00:15]} f3 {[%emt 0:00:15]} 49. Kg7 {[%emt 0:00:06]} f2 {[%emt 0:00:06]} 50. h6 {[%emt 0:00:13]} f1=Q {[%emt 0:00:06]} 51. h7 {[%emt 0:00:05]} Qf7+ {[%emt 0:00:16]} 52. Kh8 {[%emt 0:00:06]} Ng6# {[%emt 0:00:05]} 0-1